[Event "EYCC Open-U10 2019"]
[Site "Bratislava"]
[Date "2019.08.08"]
[Round "7.13"]
[White "Deveci, Huseyin Said"]
[Black "Gusev, Mikhail"]
[Result "0-1"]
[ECO "C01"]
[WhiteElo "1558"]
[BlackElo "1575"]
[Annotator "NA"]
[PlyCount "138"]
[EventDate "2019.08.02"]
[EventType "swiss"]
[EventCountry "SVK"]
[SourceTitle "playchess.com"]
[Source "ChessBase"]
[SourceQuality "1"]
[TimeControl "40/5400+30:1800+30"]

1. e4 {[%emt 0:00:00]} e6 {[%emt 0:00:00]} 2. d4 {[%emt 0:00:00]} d5 {[%emt 0:00:00]} 3. exd5 {[%emt 0:00:00]} exd5 {[%emt 0:00:05]} 4. Nf3 {[%emt 0:00:00]} Nc6 {[%emt 0:00:26]} 5. c3 {[%emt 0:00:04]} Bd6 {[%emt 0:00:16]} 6. Bd3 {[%emt 0:00:09]} Bg4 {[%emt 0:00:29]} 7. O-O {[%emt 0:00:50]} Qd7 {[%emt 0:00:11]} 8. Re1+ {[%emt 0:01:35]} Nge7 {[%emt 0:00:07]} 9. Nbd2 {[%emt 0:10:35]} O-O-O {[%emt 0:01:45]} 10. a4 {[%emt 0:00:50]} h5 {[%emt 0:01:54]} 11. b4 {[%emt 0:01:56]} h4 {[%emt 0:01:25]} 12. a5 {[%emt 0:00:59]} Ng6 {[%emt 0:02:16]} 13. Bxg6 {[%emt 0:10:32]} fxg6 {[%emt 0:00:17]} 14. b5 {[%emt 0:06:20]} Ne7 {[%emt 0:01:10]} 15. Ba3 {[%emt 0:01:01]} Bxa3 {[%emt 0:07:08]} 16. Rxa3 {[%emt 0:00:07]} h3 {[%emt 0:01:08]} 17. Ne5 {[%emt 0:08:44]} Bxd1 {[%emt 0:02:05]} 18. Nxd7 {[%emt 0:00:11]} Kxd7 {[%emt 0:01:13]} 19. Rxd1 {[%emt 0:00:06]} hxg2 {[%emt 0:00:45]} 20. Nf3 {[%emt 0:01:32]} Rh5 {[%emt 0:02:20]} 21. Kxg2 {[%emt 0:00:31]} Nf5 {[%emt 0:01:14]} 22. Re1 {[%emt 0:01:24]} Rdh8 {[%emt 0:00:56]} 23. Rh1 {[%emt 0:06:32]} Nh4+ {[%emt 0:00:37]} 24. Nxh4 {[%emt 0:00:02]} Rxh4 {[%emt 0:00:00]} 25. f3 {[%emt 0:01:17]} Re8 {[%emt 0:01:00]} 26. Ra2 {[%emt 0:02:30]} Re3 {[%emt 0:02:23]} 27. Rc2 {[%emt 0:00:07]} Rf4 {[%emt 0:00:39]} 28. Rf1 {[%emt 0:00:03]} g5 {[%emt 0:00:51]} 29. h3 {[%emt 0:02:27]} g6 {[%emt 0:00:17]} 30. Rff2 {[%emt 0:06:21]} Rf5 {[%emt 0:02:31]} 31. Kg3 {[%emt 0:00:57]} a6 {[%emt 0:01:15]} 32. bxa6 {[%emt 0:01:17]} bxa6 {[%emt 0:00:10]} 33. c4 {[%emt 0:01:05]} Rd3 {[%emt 0:03:04]} 34. cxd5 {[%emt 0:03:42]} Rxd5 {[%emt 0:01:28]} 35. Rc1 {[%emt 0:03:00]} c6 {[%emt 0:03:25]} 36. Rfc2 {[%emt 0:01:37]} Rd6 {[%emt 0:02:32]} 37. Rc5 {[%emt 0:00:22]} Rf6 {[%emt 0:01:01]} 38. Rxg5 {[%emt 0:00:25]} Rdxf3+ {[%emt 0:01:06]} 39. Kg2 {[%emt 0:00:16]} R3f5 {[%emt 0:03:18]} 40. Rc5 {[%emt 0:00:00]} Rxc5 {[%emt 0:00:00]} 41. dxc5 {[%emt 0:09:05]} Ke6 {[%emt 0:03:42]} 42. Kg3 {[%emt 0:00:06]} Kf7 {[%emt 0:01:22]} 43. Kg4 {[%emt 0:00:37]} Rf1 {[%emt 0:01:05]} 44. h4 {[%emt 0:03:32]} Kf6 {[%emt 0:01:19]} 45. Kh3 {[%emt 0:01:45]} Rh1+ {[%emt 0:01:24]} 46. Kg3 {[%emt 0:01:03]} Ra1 {[%emt 0:01:39]} 47. Rg4 {[%emt 0:02:10]} Rxa5 {[%emt 0:00:18]} 48. Rf4+ {[%emt 0:00:32]} Kg7 {[%emt 0:00:26]} 49. Rc4 {[%emt 0:00:14]} Rb5 {[%emt 0:00:14]} 50. Kf4 {[%emt 0:00:42]} Kf6 {[%emt 0:00:27]} 51. Ke3 {[%emt 0:01:17]} a5 {[%emt 0:02:19]} 52. Kd4 {[%emt 0:01:07]} Rb4 {[%emt 0:00:35]} 53. Rxb4 {[%emt 0:00:06]} axb4 {[%emt 0:00:39]} 54. Kc4 {[%emt 0:00:03]} Ke5 {[%emt 0:00:26]} 55. Kxb4 {[%emt 0:00:07]} Kd4 {[%emt 0:00:30]} 56. Kb3 {[%emt 0:00:03]} Kxc5 {[%emt 0:00:21]} 57. Kc3 {[%emt 0:00:04]} Kd5 {[%emt 0:00:40]} 58. Kb4 {[%emt 0:00:20]} Kd4 {[%emt 0:00:06]} 59. Kb3 {[%emt 0:00:03]} c5 {[%emt 0:00:19]} 60. Kc2 {[%emt 0:00:07]} Kc4 {[%emt 0:00:14]} 61. Kd2 {[%emt 0:00:14]} Kb3 {[%emt 0:01:38]} 62. Ke3 {[%emt 0:00:05]} c4 {[%emt 0:00:19]} 63. Kf4 {[%emt 0:00:02]} c3 {[%emt 0:00:13]} 64. Kg5 {[%emt 0:00:02]} c2 {[%emt 0:00:11]} 65. Kxg6 {[%emt 0:00:02]} c1=Q {[%emt 0:00:10]} 66. h5 {[%emt 0:00:04]} Kc4 {[%emt 0:00:59]} 67. h6 {[%emt 0:00:06]} Kd5 {[%emt 0:00:04]} 68. Kg7 {[%emt 0:00:29]} Qg5+ {[%emt 0:00:07]} 69. Kh7 {[%emt 0:00:14]} Ke6 {[%emt 0:00:05]} 0-1

[Event "EYCC Open-U10 2019"]
[Site "Bratislava"]
[Date "2019.08.08"]
[Round "7.14"]
[White "Wielgus, Wojciech"]
[Black "Tabuenca Mendataurigoitia, Dani"]
[Result "1/2-1/2"]
[ECO "B00"]
[WhiteElo "1655"]
[BlackElo "1765"]
[Annotator "NA"]
[PlyCount "118"]
[EventDate "2019.08.02"]
[EventType "swiss"]
[EventCountry "SVK"]
[SourceTitle "playchess.com"]
[Source "ChessBase"]
[SourceQuality "1"]
[TimeControl "40/5400+30:1800+30"]

1. e4 Nc6 2. d4 d5 3. e5 Bf5 4. h4 Qd7 5. c3 f6 6. f4 e6 7. Bd3 Bxd3 8. Qxd3 Nge7 9. Ne2 h5 10. Ng3 O-O-O 11. Be3 f5 12. Ne2 Ng8 13. b4 Nh6 14. a4 Ng4 15. a5 Bxb4 16. Na3 Bxa5 17. Nb5 a6 18. Na7+ Nxa7 19. Rxa5 Qc6 20. O-O b5 21. Rfa1 Kb7 22. Nc1 Ra8 23. Nb3 Nc8 24. Nc5+ Kb8 25. Nxa6+ Rxa6 26. Rxa6 Nb6 27. Bc1 Qd7 28. Ba3 Qd8 29. g3 c6 30. Bd6+ Kc8 31. Ra8+ Nxa8 32. Rxa8+ Kb7 33. Rxd8 Rxd8 34. Qb1 Ra8 35. Kg2 Ra4 36. Kf3 Nh2+ 37. Ke3 Ng4+ 38. Kd3 g6 39. Qb2 Kb6 40. Bc5+ Kb7 41. Bb4 Kb6 42. Ba3 Kb7 43. Ke2 Kb6 44. Qc1 Kb7 45. Bb2 Kb6 46. Qd2 Kb7 47. Kd3 Kb6 48. Kc2 Kb7 49. Kb3 Kb6 50. Ba3 Kb7 51. Kb2 Kb6 52. c4 dxc4 53. d5 cxd5 54. Qd4+ Ka6 55. Qc5 c3+ 56. Qxc3 Rc4 57. Qd2 Re4 58. Qc2 Rc4 59. Qd2 Re4 1/2-1/2

[Event "EYCC Open-U10 2019"]
[Site "Bratislava"]
[Date "2019.08.08"]
[Round "7.15"]
[White "Simbelov, Roman T."]
[Black "Ermitsch, Magnus"]
[Result "1-0"]
[ECO "B47"]
[WhiteElo "1560"]
[BlackElo "1750"]
[Annotator "NA"]
[PlyCount "109"]
[EventDate "2019.08.02"]
[EventType "swiss"]
[EventCountry "SVK"]
[SourceTitle "playchess.com"]
[Source "ChessBase"]
[SourceQuality "1"]
[TimeControl "40/5400+30:1800+30"]

1. e4 c5 2. Nf3 e6 3. d4 cxd4 4. Nxd4 Nc6 5. Nc3 Qc7 6. g3 a6 7. Bg2 Nf6 8. O-O Nxd4 9. Qxd4 Bc5 10. Qd3 Ng4 11. Qe2 h5 12. Bf4 Ne5 13. h4 d6 14. Rad1 Bd7 15. Rd2 Nc4 16. Rdd1 Ne5 17. Be3 Rd8 18. Bg5 f6 19. Be3 b5 20. Bxc5 Qxc5 21. Qd2 b4 22. Ne2 Nc4 23. Qc1 Bb5 24. Nf4 Kf7 25. Nd3 Qb6 26. Nxb4 Rb8 27. Nd3 Rhc8 28. a4 Be8 29. b3 Na5 30. Qd2 Rc7 31. Nf4 Nb7 32. Bh3 Bd7 33. Qd3 Nc5 34. Qxd6 Nxe4 35. Qd3 f5 36. Bxf5 exf5 37. Nd5 Nc5 38. Qc4 Be6 39. Nxb6 Bxc4 40. Nxc4 Kf8 41. a5 Rb5 42. Rfe1 Nb7 43. Kg2 Kg8 44. Ra1 Kf7 45. Re5 Rxe5 46. Nxe5+ Ke6 47. Nc4 Kd5 48. Rd1+ Kc5 49. c3 Re7 50. Ne3 Re5 51. Rd7 Nxa5 52. b4+ Kc6 53. Rxg7 Nb7 54. Rg6+ Kb5 55. c4+ 1-0

[Event "EYCC Open-U10 2019"]
[Site "Bratislava"]
[Date "2019.08.08"]
[Round "7.16"]
[White "Medhus, Vitus Bondo"]
[Black "Shearsby, Jude"]
[Result "1/2-1/2"]
[ECO "B00"]
[WhiteElo "1704"]
[BlackElo "1486"]
[Annotator "NA"]
[PlyCount "65"]
[EventDate "2019.08.02"]
[EventType "swiss"]
[EventCountry "SVK"]
[SourceTitle "playchess.com"]
[Source "ChessBase"]
[SourceQuality "1"]
[TimeControl "40/5400+30:1800+30"]

1. e4 {[%emt 0:00:00]} Nc6 {[%emt 0:00:00]} 2. Nf3 {[%emt 0:00:00]} d6 {[%emt 0:00:00]} 3. d4 {[%emt 0:00:29]} Nf6 {[%emt 0:00:00]} 4. Nc3 {[%emt 0:00:26]} g6 {[%emt 0:00:00]} 5. d5 {[%emt 0:00:46]} Nb8 {[%emt 0:00:10]} 6. h3 {[%emt 0:00:28]} Bg7 {[%emt 0:00:06]} 7. Bc4 {[%emt 0:00:29]} O-O {[%emt 0:00:13]} 8. O-O {[%emt 0:00:32]} c6 {[%emt 0:00:22]} 9. a4 {[%emt 0:00:52]} cxd5 {[%emt 0:00:43]} 10. exd5 {[%emt 0:00:14]} Nbd7 {[%emt 0:00:34]} 11. a5 {[%emt 0:05:26]} Nc5 {[%emt 0:00:58]} 12. Re1 {[%emt 0:03:05]} Bf5 {[%emt 0:05:44]} 13. Nd4 {[%emt 0:04:52]} Bc8 {[%emt 0:02:35]} 14. b4 {[%emt 0:06:12]} Ncd7 {[%emt 0:01:16]} 15. Bf4 {[%emt 0:03:55]} Nh5 {[%emt 0:05:01]} 16. Bh2 {[%emt 0:01:49]} Ne5 {[%emt 0:00:32]} 17. Bb3 {[%emt 0:02:30]} Re8 {[%emt 0:22:59]} 18. f4 {[%emt 0:06:40]} Nd7 {[%emt 0:01:56]} 19. Rc1 {[%emt 0:03:28]} Nf8 {[%emt 0:06:22]} 20. Ne4 {[%emt 0:04:24]} Nf6 {[%emt 0:05:31]} 21. c4 {[%emt 0:04:00]} Nxe4 {[%emt 0:01:34]} 22. Rxe4 {[%emt 0:01:45]} Nd7 {[%emt 0:02:38]} 23. f5 {[%emt 0:07:45]} Nf6 {[%emt 0:09:56]} 24. Rf4 {[%emt 0:01:30]} Bh6 {[%emt 0:01:23]} 25. fxg6 {[%emt 0:01:47]} hxg6 {[%emt 0:02:58]} 26. Rh4 {[%emt 0:01:33]} Bg5 {[%emt 0:00:37]} 27. Qe1 {[%emt 0:00:56]} Bxh4 {[%emt 0:01:05]} 28. Qxh4 {[%emt 0:00:08]} Kg7 {[%emt 0:01:04]} 29. c5 {[%emt 0:00:49]} dxc5 {[%emt 0:00:48]} 30. Nb5 {[%emt 0:00:15]} Rh8 {[%emt 0:01:46]} 31. Qf2 {[%emt 0:03:22]} Bd7 {[%emt 0:01:57]} 32. Nc7 {[%emt 0:02:28]} Rc8 {[%emt 0:00:36]} 33. Rxc5 {[%emt 0:03:59]} 1/2-1/2

[Event "EYCC Open-U10 2019"]
[Site "Bratislava"]
[Date "2019.08.08"]
[Round "7.17"]
[White "Gordeev, Denis"]
[Black "Agasarov, Benik"]
[Result "1/2-1/2"]
[ECO "A45"]
[WhiteElo "1467"]
[BlackElo "1697"]
[Annotator "NA"]
[PlyCount "77"]
[EventDate "2019.08.02"]
[EventType "swiss"]
[EventCountry "SVK"]
[SourceTitle "playchess.com"]
[Source "ChessBase"]
[SourceQuality "1"]
[TimeControl "40/5400+30:1800+30"]

1. d4 {[%emt 0:00:00]} Nf6 {[%emt 0:00:00]} 2. Nc3 {[%emt 0:00:00]} d5 {[%emt 0:00:12]} 3. Bf4 {[%emt 0:00:23]} c6 {[%emt 0:00:15]} 4. e3 {[%emt 0:00:31]} Bf5 {[%emt 0:00:07]} 5. f3 {[%emt 0:00:32]} e6 {[%emt 0:00:40]} 6. g4 {[%emt 0:00:47]} Bg6 {[%emt 0:00:09]} 7. h4 {[%emt 0:00:12]} h5 {[%emt 0:01:28]} 8. g5 {[%emt 0:00:30]} Ng8 {[%emt 0:00:41]} 9. Bd3 {[%emt 0:02:14]} Bxd3 {[%emt 0:02:03]} 10. Qxd3 {[%emt 0:00:16]} Bd6 {[%emt 0:02:29]} 11. Nge2 {[%emt 0:01:14]} Ne7 {[%emt 0:00:19]} 12. O-O-O {[%emt 0:01:19]} Na6 {[%emt 0:01:02]} 13. e4 {[%emt 0:04:24]} Bxf4+ {[%emt 0:01:24]} 14. Nxf4 {[%emt 0:00:30]} g6 {[%emt 0:02:47]} 15. Rhe1 {[%emt 0:03:59]} Qd6 {[%emt 0:00:19]} 16. Qe3 {[%emt 0:02:42]} Nc7 {[%emt 0:00:54]} 17. Nd3 {[%emt 0:04:08]} O-O {[%emt 0:04:42]} 18. Ne5 {[%emt 0:08:58]} b5 {[%emt 0:05:40]} 19. Ne2 {[%emt 0:06:09]} a5 {[%emt 0:10:45]} 20. Ng3 {[%emt 0:02:07]} Kg7 {[%emt 0:06:41]} 21. Qf4 {[%emt 0:07:41]} Ne8 {[%emt 0:00:21]} 22. Kb1 {[%emt 0:06:37]} a4 {[%emt 0:01:31]} 23. Qe3 {[%emt 0:05:16]} Qc7 {[%emt 0:06:10]} 24. Qc3 {[%emt 0:03:35]} Rc8 {[%emt 0:03:31]} 25. Ne2 {[%emt 0:04:42]} Nd6 {[%emt 0:01:07]} 26. Nf4 {[%emt 0:00:47]} Nc4 {[%emt 0:00:19]} 27. Nfd3 {[%emt 0:00:26]} Nxe5 {[%emt 0:01:47]} 28. Nxe5 {[%emt 0:03:05]} Qd6 {[%emt 0:01:16]} 29. Nd3 {[%emt 0:04:06]} Rfd8 {[%emt 0:04:16]} 30. Nc5 {[%emt 0:01:00]} Re8 {[%emt 0:06:20]} 31. Qe3 {[%emt 0:05:56]} Qg3 {[%emt 0:05:58]} 32. Nd7 {[%emt 0:09:07]} Qc7 {[%emt 0:02:55]} 33. Nc5 {[%emt 0:02:36]} Rcd8 {[%emt 0:00:55]} 34. c3 {[%emt 0:01:39]} Qg3 {[%emt 0:01:54]} 35. Rh1 {[%emt 0:00:53]} Qb8 {[%emt 0:00:59]} 36. Nd3 {[%emt 0:01:40]} Rd7 {[%emt 0:06:23]} 37. Ne5 {[%emt 0:00:37]} Rb7 {[%emt 0:00:16]} 38. a3 {[%emt 0:00:57]} Qc7 {[%emt 0:00:48]} 39. Nd3 {[%emt 0:00:59]} 1/2-1/2

[Event "EYCC Open-U10 2019"]
[Site "Bratislava"]
[Date "2019.08.08"]
[Round "7.18"]
[White "Tykheev, Aldar"]
[Black "Panda, Barnabas"]
[Result "1-0"]
[ECO "D05"]
[WhiteElo "1434"]
[BlackElo "1625"]
[Annotator "NA"]
[PlyCount "105"]
[EventDate "2019.08.02"]
[EventType "swiss"]
[EventCountry "SVK"]
[SourceTitle "playchess.com"]
[Source "ChessBase"]
[SourceQuality "1"]
[TimeControl "40/5400+30:1800+30"]

1. d4 {[%emt 0:00:00]} Nf6 {[%emt 0:00:11]} 2. Nf3 {[%emt 0:00:00]} d5 {[%emt 0:00:40]} 3. e3 {[%emt 0:00:00]} e6 {[%emt 0:02:08]} 4. Bd3 {[%emt 0:00:02]} Be7 {[%emt 0:01:05]} 5. b3 {[%emt 0:00:09]} O-O 6. O-O {[%emt 0:00:02]} b6 {[%emt 0:03:05]} 7. Bb2 {[%emt 0:00:19]} Bb7 {[%emt 0:00:59]} 8. Nbd2 Nbd7 {[%emt 0:01:36]} 9. Ne5 {[%emt 0:00:54]} c5 {[%emt 0:02:44]} 10. f4 Ne4 {[%emt 0:03:14]} 11. Rf3 {[%emt 0:10:29]} f5 {[%emt 0:05:51]} 12. Rh3 {[%emt 0:41:14]} Nxe5 13. dxe5 Nxd2 {[%emt 0:25:51]} 14. Qxd2 {[%emt 0:00:49]} d4 15. exd4 {[%emt 0:01:48]} cxd4 {[%emt 0:08:04]} 16. Bc4 {[%emt 0:01:03]} Bd5 {[%emt 0:00:59]} 17. Bxd5 {[%emt 0:00:22]} Qxd5 {[%emt 0:01:40]} 18. Rd3 Rfd8 {[%emt 0:05:05]} 19. Bxd4 {[%emt 0:06:03]} Qc6 20. Rd1 Rac8 {[%emt 0:07:26]} 21. c4 {[%emt 0:08:18]} Qe4 22. Bf2 Rxd3 {[%emt 0:11:39]} 23. Qxd3 {[%emt 0:06:14]} Rd8 {[%emt 0:00:21]} 24. Qxe4 {[%emt 0:00:35]} Rxd1+ {[%emt 0:00:15]} 25. Qe1 {[%emt 0:00:04]} Rxe1+ {[%emt 0:00:17]} 26. Bxe1 {[%emt 0:00:03]} Kf8 {[%emt 0:00:10]} 27. Kf1 {[%emt 0:00:11]} Ke8 {[%emt 0:00:31]} 28. Ke2 {[%emt 0:00:20]} Kd7 {[%emt 0:00:43]} 29. Bf2 {[%emt 0:03:46]} Kc6 {[%emt 0:01:03]} 30. Kd3 {[%emt 0:00:52]} a6 {[%emt 0:01:47]} 31. Kc3 b5 {[%emt 0:01:30]} 32. b4 {[%emt 0:03:41]} bxc4 {[%emt 0:02:12]} 33. Kxc4 {[%emt 0:00:09]} g5 {[%emt 0:00:47]} 34. g3 {[%emt 0:00:59]} gxf4 {[%emt 0:00:47]} 35. gxf4 {[%emt 0:00:14]} Bd8 {[%emt 0:00:21]} 36. a4 {[%emt 0:05:06]} Be7 {[%emt 0:01:11]} 37. b5+ {[%emt 0:00:59]} axb5+ {[%emt 0:00:17]} 38. axb5+ {[%emt 0:00:05]} Kb7 {[%emt 0:00:13]} 39. Be3 {[%emt 0:02:12]} Bd8 {[%emt 0:01:29]} 40. Bf2 {[%emt 0:00:00]} Be7 41. Kd3 {[%emt 0:09:48]} Bd8 {[%emt 0:02:05]} 42. Bc5 {[%emt 0:00:38]} Bc7 43. Ke2 {[%emt 0:17:28]} Bb6 {[%emt 0:02:46]} 44. Bf2 {[%emt 0:00:17]} Bxf2 {[%emt 0:01:49]} 45. Kxf2 {[%emt 0:00:11]} Kb6 {[%emt 0:00:03]} 46. Kg3 {[%emt 0:00:04]} Kxb5 {[%emt 0:00:16]} 47. Kh4 {[%emt 0:00:06]} Kc4 {[%emt 0:00:11]} 48. Kg5 {[%emt 0:00:13]} Kd4 {[%emt 0:00:15]} 49. Kf6 {[%emt 0:00:13]} Ke4 {[%emt 0:00:14]} 50. Kxe6 {[%emt 0:00:10]} Kxf4 {[%emt 0:02:14]} 51. Kd5 {[%emt 0:00:56]} Kf3 {[%emt 0:00:36]} 52. e6 {[%emt 0:02:10]} f4 {[%emt 0:00:28]} 53. e7 {[%emt 0:00:00] Kg3} 1-0

[Event "EYCC Open-U10 2019"]
[Site "Bratislava"]
[Date "2019.08.08"]
[Round "7.20"]
[White "Dyachuk, Artem"]
[Black "Povshednyi, Ivan"]
[Result "1-0"]
[ECO "A57"]
[WhiteElo "1538"]
[BlackElo "1872"]
[Annotator "NA"]
[PlyCount "69"]
[EventDate "2019.08.02"]
[EventType "swiss"]
[EventCountry "SVK"]
[SourceTitle "playchess.com"]
[Source "ChessBase"]
[SourceQuality "1"]
[TimeControl "40/5400+30:1800+30"]

1. d4 {[%emt 0:00:00]} Nf6 {[%emt 0:00:00]} 2. c4 {[%emt 0:00:00]} c5 {[%emt 0:00:00]} 3. d5 {[%emt 0:00:00]} b5 {[%emt 0:00:00]} 4. cxb5 {[%emt 0:00:00]} a6 {[%emt 0:00:00]} 5. b6 {[%emt 0:00:07]} g6 {[%emt 0:00:44]} 6. Nc3 {[%emt 0:00:13]} Bg7 {[%emt 0:00:35]} 7. e4 {[%emt 0:00:36]} O-O {[%emt 0:01:59]} 8. Qb3 {[%emt 0:00:41]} Bb7 {[%emt 0:01:04]} 9. a4 {[%emt 0:00:41]} a5 {[%emt 0:08:23]} 10. Nf3 {[%emt 0:04:19]} d6 {[%emt 0:00:47]} 11. Nd2 {[%emt 0:02:25]} Nbd7 {[%emt 0:02:03]} 12. Nc4 {[%emt 0:00:56]} Ng4 {[%emt 0:05:27]} 13. Nb5 {[%emt 0:05:12]} f5 {[%emt 0:14:40]} 14. h3 {[%emt 0:06:26]} Nge5 {[%emt 0:11:21]} 15. Nxe5 {[%emt 0:00:23]} Nxe5 {[%emt 0:01:15]} 16. Nc7 {[%emt 0:01:31]} fxe4 {[%emt 0:06:40]} 17. Ne6 {[%emt 0:12:32]} Qc8 {[%emt 0:01:50]} 18. Nxf8 {[%emt 0:03:26]} Qxf8 {[%emt 0:00:50]} 19. Be3 {[%emt 0:02:09]} Qd8 {[%emt 0:07:52]} 20. Be2 {[%emt 0:04:35]} Qc8 {[%emt 0:06:53]} 21. Rc1 {[%emt 0:03:09]} Kh8 {[%emt 0:06:22]} 22. O-O {[%emt 0:03:07]} Ba6 {[%emt 0:02:18]} 23. Bxa6 {[%emt 0:00:53]} Qxa6 {[%emt 0:00:23]} 24. Qb5 {[%emt 0:04:26]} Nd3 {[%emt 0:08:07]} 25. b7 {[%emt 0:02:43]} Qa7 {[%emt 0:01:04]} 26. bxa8=Q+ {[%emt 0:01:32]} Qxa8 {[%emt 0:00:03]} 27. Rc4 {[%emt 0:00:48]} Ne5 28. Rxe4 {[%emt 0:00:44]} h5 {[%emt 0:00:45]} 29. Rxe5 {[%emt 0:00:24]} Bxe5 {[%emt 0:00:07]} 30. Qc6 {[%emt 0:00:29]} Qf8 {[%emt 0:00:12]} 31. Qd7 {[%emt 0:00:27]} Qg7 {[%emt 0:01:24]} 32. Bg5 {[%emt 0:00:32]} Qf7 {[%emt 0:00:47]} 33. Qd8+ {[%emt 0:00:23]} Kh7 {[%emt 0:00:20]} 34. Qxe7 {[%emt 0:00:00]} Qxe7 {[%emt 0:00:33]} 35. Bxe7 1-0

[Event "EYCC Open-U10 2019"]
[Site "Bratislava"]
[Date "2019.08.08"]
[Round "7.21"]
[White "Sapocinic, Semion"]
[Black "Papaioannou, Dimitrios"]
[Result "1-0"]
[ECO "C77"]
[WhiteElo "1781"]
[BlackElo "1629"]
[Annotator "NA"]
[PlyCount "91"]
[EventDate "2019.08.02"]
[EventType "swiss"]
[EventCountry "SVK"]
[SourceTitle "playchess.com"]
[Source "ChessBase"]
[SourceQuality "1"]
[TimeControl "40/5400+30:1800+30"]

1. e4 {[%emt 0:00:00]} e5 {[%emt 0:00:00]} 2. Nf3 {[%emt 0:00:00]} Nc6 {[%emt 0:00:00]} 3. Bb5 {[%emt 0:00:00]} a6 {[%emt 0:00:00]} 4. Ba4 {[%emt 0:00:00]} Nf6 {[%emt 0:00:06]} 5. d3 {[%emt 0:00:00]} b5 {[%emt 0:00:06]} 6. Bb3 {[%emt 0:00:06]} Be7 {[%emt 0:00:06]} 7. O-O {[%emt 0:00:37]} d6 {[%emt 0:00:08]} 8. c3 {[%emt 0:00:12]} O-O {[%emt 0:00:09]} 9. Nbd2 {[%emt 0:00:04]} Na5 {[%emt 0:00:22]} 10. Bc2 {[%emt 0:00:12]} c5 {[%emt 0:00:18]} 11. Re1 {[%emt 0:00:14]} Re8 {[%emt 0:00:32]} 12. Nf1 {[%emt 0:00:23]} Nc6 {[%emt 0:00:55]} 13. Ng3 {[%emt 0:00:41]} Be6 {[%emt 0:01:39]} 14. Ng5 {[%emt 0:01:40]} Qd7 {[%emt 0:01:41]} 15. Nxe6 {[%emt 0:00:15]} fxe6 {[%emt 0:00:20]} 16. Nh5 {[%emt 0:07:00]} Rf8 {[%emt 0:03:21]} 17. Nxf6+ {[%emt 0:00:39]} Bxf6 {[%emt 0:00:19]} 18. Be3 {[%emt 0:00:53]} Rac8 {[%emt 0:02:59]} 19. Qg4 {[%emt 0:03:20]} Rfe8 {[%emt 0:04:50]} 20. h4 {[%emt 0:17:48]} Qe7 {[%emt 0:04:21]} 21. h5 {[%emt 0:02:27]} d5 {[%emt 0:03:35]} 22. exd5 {[%emt 0:03:24]} exd5 {[%emt 0:00:09]} 23. Bb3 {[%emt 0:05:10]} Rcd8 {[%emt 0:02:20]} 24. a4 {[%emt 0:09:05]} Kh8 {[%emt 0:03:28]} 25. axb5 {[%emt 0:01:21]} axb5 {[%emt 0:00:01]} 26. Ra6 {[%emt 0:00:30]} Qb7 {[%emt 0:01:45]} 27. Rea1 {[%emt 0:00:57]} d4 {[%emt 0:00:33]} 28. cxd4 {[%emt 0:00:44]} exd4 {[%emt 0:01:29]} 29. Bf4 {[%emt 0:03:34]} Ne5 {[%emt 0:09:05]} 30. Bxe5 {[%emt 0:00:29]} Rxe5 {[%emt 0:00:55]} 31. Ra7 {[%emt 0:06:12]} Qc8 {[%emt 0:01:42]} 32. Qf3 {[%emt 0:14:25]} Qf5 {[%emt 0:07:27]} 33. Qxf5 {[%emt 0:01:18]} Rxf5 {[%emt 0:03:38]} 34. h6 {[%emt 0:00:02]} b4 {[%emt 0:07:09]} 35. Rc7 {[%emt 0:04:38]} Re8 {[%emt 0:02:13]} 36. g3 {[%emt 0:02:39]} Rfe5 {[%emt 0:06:21]} 37. Raa7 {[%emt 0:01:36]} R5e7 {[%emt 0:00:46]} 38. Rxe7 {[%emt 0:00:14]} Bxe7 {[%emt 0:00:12]} 39. Bf7 {[%emt 0:01:10]} Rf8 {[%emt 0:00:36]} 40. Rxe7 {[%emt 0:00:00]} gxh6 {[%emt 0:00:00]} 41. Re8 {[%emt 0:00:42]} Kg7 {[%emt 0:01:07]} 42. Rxf8 {[%emt 0:00:14]} Kxf8 {[%emt 0:00:02]} 43. Bc4 {[%emt 0:00:01]} Ke7 {[%emt 0:00:16]} 44. Kg2 {[%emt 0:00:14]} Kf6 {[%emt 0:00:08]} 45. Kf3 {[%emt 0:00:29]} Kf5 {[%emt 0:00:08]} 46. Bg8 {[%emt 0:01:03]} 1-0

[Event "EYCC Open-U10 2019"]
[Site "Bratislava"]
[Date "2019.08.08"]
[Round "7.22"]
[White "Sauer, Tim"]
[Black "Efimov, Leonid"]
[Result "0-1"]
[ECO "A13"]
[WhiteElo "1635"]
[BlackElo "1773"]
[Annotator "NA"]
[PlyCount "104"]
[EventDate "2019.08.02"]
[EventType "swiss"]
[EventCountry "SVK"]
[SourceTitle "playchess.com"]
[Source "ChessBase"]
[SourceQuality "1"]
[TimeControl "40/5400+30:1800+30"]

1. c4 {[%emt 0:00:00]} e6 {[%emt 0:00:00]} 2. Nf3 {[%emt 0:00:00]} d5 {[%emt 0:00:00]} 3. g3 {[%emt 0:00:00]} dxc4 {[%emt 0:00:13]} 4. Bg2 {[%emt 0:00:57]} Nf6 {[%emt 0:04:34]} 5. O-O {[%emt 0:00:12]} Nbd7 {[%emt 0:02:05]} 6. Qc2 {[%emt 0:00:54]} Nb6 {[%emt 0:06:39]} 7. Na3 {[%emt 0:04:45]} Bxa3 {[%emt 0:01:05]} 8. bxa3 {[%emt 0:00:09]} Bd7 {[%emt 0:07:33]} 9. Bb2 {[%emt 0:04:08]} Ba4 {[%emt 0:07:50]} 10. Qc3 {[%emt 0:00:19]} Bc6 {[%emt 0:00:17]} 11. Qe5 {[%emt 0:12:19]} Qd6 {[%emt 0:02:24]} 12. Qg5 {[%emt 0:01:23]} Nbd7 {[%emt 0:20:24]} 13. Qxg7 {[%emt 0:04:19]} Rg8 {[%emt 0:00:38]} 14. Qh6 {[%emt 0:00:36]} Rg6 {[%emt 0:01:34]} 15. Qh4 {[%emt 0:00:22]} Bd5 {[%emt 0:01:06]} 16. Rfe1 {[%emt 0:05:56]} O-O-O {[%emt 0:04:39]} 17. Bxf6 {[%emt 0:06:30]} Nxf6 {[%emt 0:01:21]} 18. e4 {[%emt 0:00:09]} Bc6 {[%emt 0:03:38]} 19. e5 {[%emt 0:00:08]} Qxa3 {[%emt 0:00:22]} 20. Qxc4 {[%emt 0:16:10]} Bxf3 {[%emt 0:00:58]} 21. Re3 {[%emt 0:03:21]} Bd5 {[%emt 0:03:01]} 22. Qxd5 {[%emt 0:06:01]} Qb2 {[%emt 0:03:19]} 23. Qxb7+ {[%emt 0:00:43]} Qxb7 {[%emt 0:00:03]} 24. Bxb7+ {[%emt 0:00:01]} Kxb7 {[%emt 0:00:02]} 25. exf6 {[%emt 0:00:05]} Rxd2 {[%emt 0:00:54]} 26. Rf3 {[%emt 0:01:18]} Rg5 {[%emt 0:00:55]} 27. Rb1+ {[%emt 0:00:23]} Kc8 {[%emt 0:00:17]} 28. Ra3 {[%emt 0:03:18]} Rf5 {[%emt 0:01:38]} 29. f4 {[%emt 0:00:06]} Rxf6 {[%emt 0:00:57]} 30. Rxa7 {[%emt 0:00:07]} Rc2 {[%emt 0:01:35]} 31. Rb3 {[%emt 0:03:00]} e5 {[%emt 0:01:08]} 32. Ra8+ {[%emt 0:03:11]} Kd7 {[%emt 0:00:10]} 33. Rd3+ {[%emt 0:00:05]} Ke7 {[%emt 0:00:22]} 34. Re3 {[%emt 0:01:05]} Rd6 {[%emt 0:00:22]} 35. Rxe5+ {[%emt 0:00:49]} Kf6 {[%emt 0:00:05]} 36. Re1 {[%emt 0:02:10]} Rdd2 {[%emt 0:00:54]} 37. Ra6+ {[%emt 0:00:38]} Kg7 {[%emt 0:00:07]} 38. a4 {[%emt 0:00:35]} Rg2+ {[%emt 0:00:15]} 39. Kh1 {[%emt 0:00:08]} Rxh2+ {[%emt 0:00:14]} 40. Kg1 {[%emt 0:00:00]} Rcg2+ {[%emt 0:00:00]} 41. Kf1 {[%emt 0:00:23]} Ra2 {[%emt 0:00:51]} 42. Kg1 {[%emt 0:01:48]} Rag2+ {[%emt 0:00:54]} 43. Kf1 {[%emt 0:00:07]} Rxg3 {[%emt 0:00:20]} 44. a5 {[%emt 0:00:33]} h5 {[%emt 0:00:28]} 45. Ra8 {[%emt 0:02:04]} Ra3 {[%emt 0:00:35]} 46. Kg1 {[%emt 0:01:35]} Raa2 {[%emt 0:00:28]} 47. a6 {[%emt 0:00:17]} h4 {[%emt 0:00:07]} 48. a7 {[%emt 0:02:07]} h3 {[%emt 0:00:26]} 49. Rg8+ {[%emt 0:02:12]} Kxg8 {[%emt 0:01:01]} 50. a8=Q+ {[%emt 0:00:46]} Kg7 {[%emt 0:03:09]} 51. Kf1 {[%emt 0:01:19]} Rxa8 52. Kg1 {[%emt 0:01:27]} Raa2 {[%emt 0:01:23]} 0-1